bitfinex/quotes_SOLUSD_20230113
["timestamp","ask_amount","ask_price","bid_price","bid_amount"]
[1673595075174,98.98982022,16.858,16.836,10.0]
[1673595075578,55.90304459,16.857,16.836,10.0]
[1673595076333,98.89622022,16.857,16.836,10.0]
[1673595076638,55.90304459,16.856,16.836,10.0]
[1673595077465,55.90304459,16.856,16.834,117.3082]
[1673595077677,98.89622022,16.856,16.834,117.3082]
[1673595078110,55.90304459,16.855,16.834,117.3082]
[1673595078516,98.89622022,16.855,16.834,117.3082]
[1673595078726,24.15,16.85,16.834,117.3082]
[1673595079691,80.05304459,16.85,16.834,117.3082]
[1673595080219,80.05304459,16.85,16.835,10.0]
[1673595080738,24.15,16.85,16.835,10.0]
[1673595081794,98.89622022,16.855,16.835,10.0]
[1673595085572,24.0,16.85,16.834,117.3082]
[1673595085765,24.0,16.85,16.83,115.5208]
[1673595085766,121.03,16.85,16.83,115.5208]
[1673595085970,10.0,16.848,16.83,115.5208]
[1673595086411,105.20815355,16.847,16.83,115.5208]
[1673595086623,105.20815355,16.847,16.824,110.7239]
[1673595086937,105.20815355,16.846,16.824,110.7239]
[1673595087362,105.20815355,16.845,16.824,110.7239]
[1673595087766,105.20815355,16.844,16.824,110.7239]
[1673595088299,105.20815355,16.843,16.824,110.7239]
[1673595088510,24.15,16.84,16.824,110.7239]
[1673595088919,105.20815355,16.839,16.824,110.7239]
[1673595089771,55.90304459,16.839,16.824,110.7239]
[1673595089991,49.30510896,16.838,16.824,110.7239]
[1673595091564,49.30510896,16.838,16.821,108.5055]
[1673595091782,105.20815355,16.838,16.821,108.5055]
[1673595091969,105.20815355,16.838,16.817,112.3327]
[1673595092179,49.30510896,16.837,16.817,112.3327]
[1673595092607,55.90304459,16.836,16.817,112.3327]
[1673595094080,105.20815355,16.836,16.817,112.3327]
[1673595094278,120.6,16.84,16.817,112.3327]
[1673595094492,23.93,16.84,16.82,24.15]
[1673595094703,23.93,16.84,16.822,10.0]
[1673595095543,73.23510896,16.84,16.822,10.0]
[1673595096831,73.23510896,16.84,16.823,17.0]
[1673595097239,73.23510896,16.84,16.824,10.0]
[1673595097783,73.23510896,16.84,16.825,17.0]
[1673595101883,49.30510896,16.84,16.825,17.0]
[1673595108712,55.90304459,16.843,16.825,17.0]
[1673595108925,55.90304459,16.843,16.827,10.0]
[1673595112922,49.30510896,16.844,16.827,10.0]
[1673595113136,108.1743,16.848,16.83,24.07]
[1673595113137,164.07097459,16.848,16.83,24.07]
[1673595113328,164.07097459,16.848,16.831,1.44738275]
[1673595113542,164.07097459,16.848,16.831,11.44738275]
[1673595113755,55.89667459,16.848,16.832,17.0]
[1673595114086,55.89667459,16.848,16.833,1.89937801]
[1673595114615,55.89667459,16.848,16.833,11.89937801]
[1673595117635,55.89667459,16.848,16.834,10.0]
[1673595117846,55.89667459,16.848,16.835,1.89937801]
[1673595118178,73.38510896,16.85,16.835,1.89937801]
[1673595118367,73.38510896,16.85,16.835,11.89937801]
[1673595119630,73.38510896,16.85,16.837,1.89937801]
[1673595119839,23.93,16.86,16.84,23.95]
[1673595120062,23.93,16.86,16.841,2.0]
[1673595120694,23.93,16.86,16.844,2.0]
[1673595121310,23.93,16.86,16.845,10.0]
[1673595121532,23.93,16.86,16.846,2.0]
[1673595121753,112.8452,16.862,16.846,2.0]
[1673595121941,0.12,16.862,16.846,2.0]
[1673595123003,263.76430346,16.866,16.846,2.0]
[1673595123415,302.58023947,16.866,16.846,2.0]
[1673595124366,336.32736965,16.866,16.846,2.0]
[1673595124694,336.32736965,16.866,16.844,2.0]
[1673595124903,24.15,16.86,16.844,2.0]
[1673595127305,302.58023947,16.866,16.844,2.0]
[1673595127521,302.58023947,16.866,16.845,10.0]
[1673595127731,263.76430346,16.866,16.846,2.0]
[1673595128370,263.26430346,16.866,16.846,2.0]
[1673595129102,24.35,16.87,16.847,1228.6]
[1673595129314,24.35,16.87,16.851,12.5]
[1673595129656,24.35,16.87,16.853,2.5]
[1673595129852,24.35,16.87,16.853,12.5]
[1673595130158,152.44593601,16.872,16.853,12.5]
[1673595130353,113.63,16.872,16.853,12.5]
[1673595130562,113.63,16.872,16.855,2.5]
[1673595131422,113.63,16.872,16.856,10.0]
[1673595131633,113.63,16.872,16.857,2.5]
[1673595132872,33.00130346,16.876,16.857,2.5]
[1673595133086,120.67,16.89,16.86,120.69]
[1673595133298,0.12,16.883,16.861,2.5]
[1673595133522,0.12,16.883,16.863,10.0]
[1673595133730,0.12,16.883,16.864,1349.7789]
[1673595134353,0.12,16.883,16.865,10.0]
[1673595134561,0.12,16.883,16.866,2.5]
[1673595135518,0.12,16.883,16.866,12.5]
[1673595137208,184.24703947,16.889,16.866,12.5]
[1673595137640,24.0,16.88,16.866,2.5]
[1673595138988,57.00130346,16.88,16.866,2.5]
[1673595139199,57.00130346,16.88,16.865,2.5]
[1673595139935,57.00130346,16.88,16.865,12.5]
[1673595141845,153.45130346,16.88,16.865,2.5]
[1673595142039,45.65668774,16.879,16.862,2.5]
[1673595142459,33.00130346,16.878,16.862,2.5]
[1673595142882,17.0,16.877,16.862,2.5]
[1673595143193,17.0,16.877,16.855,109.1647]
[1673595143194,62.65668774,16.877,16.855,109.1647]
[1673595143624,45.65668774,16.876,16.855,109.1647]
[1673595143835,17.0,16.875,16.858,10.0]
[1673595145421,17.0,16.875,16.855,109.1647]
[1673595145613,62.65668774,16.875,16.855,109.1647]
[1673595146769,23.99,16.87,16.855,109.1647]
[1673595146979,17.0,16.869,16.85,119.3088]
[1673595147199,62.65668774,16.869,16.85,119.3088]
[1673595148364,62.65668774,16.869,16.851,10.0]
[1673595153848,62.65668774,16.869,16.85,143.4588]
[1673595154062,62.65668774,16.869,16.85,119.3088]
[1673595154587,62.65668774,16.869,16.851,10.0]
[1673595159210,62.65668774,16.869,16.85,119.3088]
[1673595159211,45.65668774,16.868,16.85,119.3088]
[1673595159416,17.0,16.867,16.848,112.4298]
[1673595159626,23.99,16.86,16.848,112.4298]
[1673595159852,17.0,16.859,16.848,112.4298]
[1673595161120,240.38585729,16.866,16.848,112.4298]
[1673595161318,198.3592912,16.866,16.849,10.0]
[1673595161934,198.3592912,16.866,16.848,112.4298]
[1673595164772,24.0,16.86,16.848,112.4298]
[1673595170132,78.6579912,16.865,16.849,10.0]
[1673595170362,45.65668774,16.865,16.849,10.0]
[1673595171312,45.65668774,16.865,16.848,112.4298]
[1673595171624,45.65668774,16.865,16.849,10.0]
[1673595172775,45.65668774,16.865,16.848,112.4298]
[1673595174454,24.15,16.86,16.848,112.4298]
[1673595177081,24.15,16.86,16.844,117.972]
[1673595178970,24.15,16.86,16.845,10.0]
[1673595180224,93.4371062,16.844,16.833,588.1]
[1673595180434,93.4371062,16.844,16.822,1228.6]
[1673595180435,120.32,16.84,16.823,10.0]
[1673595180647,120.32,16.84,16.824,1228.6]
[1673595180864,65.48464066,16.839,16.825,10.0]
[1673595181077,65.48464066,16.839,16.826,1228.6]
[1673595181389,120.32,16.84,16.826,1228.6]
[1673595181390,24.08,16.84,16.826,1228.6]
[1673595181605,60.71797399,16.846,16.826,1228.6]
[1673595181912,0.18,16.845,16.827,10.0]
[1673595182124,0.18,16.845,16.829,10.0]
[1673595182324,0.18,16.845,16.83,1463.0913]
[1673595182534,0.18,16.845,16.831,10.0]
[1673595182755,0.18,16.845,16.833,10.0]
[1673595182962,0.18,16.845,16.835,10.0]
[1673595183171,0.18,16.845,16.836,1228.6]
[1673595183500,0.18,16.845,16.837,10.0]
[1673595185063,0.18,16.845,16.836,1228.6]
[1673595185280,0.18,16.845,16.83,234.4913]
[1673595185480,0.18,16.845,16.831,10.0]
[1673595186112,84.39387199,16.85,16.831,10.0]
[1673595189720,60.04387199,16.85,16.831,10.0]
[1673595190752,84.19387199,16.85,16.831,10.0]
[1673595192844,17.0,16.849,16.831,10.0]
[1673595193273,60.04387199,16.848,16.831,10.0]
[1673595193497,17.0,16.847,16.831,10.0]
[1673595193934,77.04387199,16.847,16.831,10.0]
[1673595194539,77.04387199,16.847,16.83,234.4913]
[1673595196338,77.04387199,16.847,16.831,10.0]
[1673595196538,77.04387199,16.847,16.83,234.4913]
[1673595198123,77.04387199,16.847,16.831,10.0]
[1673595198528,77.04387199,16.847,16.832,17.0]
[1673595199894,77.04387199,16.847,16.831,10.0]
[1673595201385,24.15,16.85,16.831,10.0]
[1673595201589,97.69841524,16.854,16.831,10.0]
[1673595201997,98.02887524,16.854,16.832,1406.8]
[1673595202208,60.04387199,16.854,16.834,10.0]
[1673595202419,60.04387199,16.854,16.835,20.0]
[1673595202647,60.04387199,16.854,16.836,10.0]
[1673595202961,60.04387199,16.854,16.838,10.0]
[1673595203165,60.04387199,16.854,16.84,10.0]
[1673595203811,60.04387199,16.854,16.841,17.0]
[1673595204023,60.04387199,16.854,16.842,10.0]
[1673595211254,60.04387199,16.854,16.843,17.0]
[1673595211466,111.5878,16.857,16.843,17.0]
[1673595213582,111.5878,16.857,16.844,10.0]
[1673595215368,60.04387199,16.859,16.844,10.0]
[1673595215980,60.04387199,16.859,16.845,17.0]
[1673595216625,60.04387199,16.859,16.844,10.0]
[1673595216831,60.04387199,16.859,16.842,10.0]
[1673595217047,17.0,16.858,16.841,10.0]
[1673595217368,60.04387199,16.857,16.84,26.02]
[1673595217581,17.0,16.856,16.84,26.02]
[1673595218312,17.0,16.856,16.841,17.0]
[1673595220193,17.0,16.856,16.841,27.0]
[1673595220936,17.0,16.856,16.842,10.0]
[1673595221575,60.04387199,16.857,16.842,10.0]
[1673595222098,60.04387199,16.857,16.843,17.0]
[1673595226718,60.04387199,16.857,16.84,26.02]
[1673595226908,60.04387199,16.857,16.84,16.02]
[1673595227851,17.0,16.856,16.84,16.02]
[1673595231241,17.0,16.856,16.84,26.02]
[1673595232374,17.0,16.856,16.84,22.01]
[1673595235869,17.0,16.856,16.84,12.01]
[1673595236394,17.0,16.856,16.84,22.01]
[1673595237015,17.0,16.856,16.841,10.0]
[1673595240375,12.01,16.85,16.835,20.0]
[1673595240592,17.0,16.849,16.832,129.8414]
[1673595240778,17.0,16.849,16.833,10.0]
[1673595240990,17.0,16.849,16.834,20.0]
[1673595241202,17.0,16.849,16.835,10.0]
[1673595241411,17.0,16.849,16.836,20.0]
[1673595244907,47.4495467,16.855,16.836,20.0]
[1673595245220,38.16500325,16.857,16.837,10.0]
[1673595246272,17.0,16.856,16.837,10.0]
[1673595247964,17.0,16.856,16.838,17.0]
[1673595248576,17.0,16.856,16.84,10.0]
[1673595248895,69.06019593,16.856,16.84,10.0]
[1673595249326,69.06019593,16.856,16.84,70.05]
[1673595249327,52.06019593,16.856,16.84,70.05]
[1673595249647,109.8327,16.857,16.841,10.0]
[1673595250162,52.06019593,16.861,16.841,10.0]
[1673595251421,17.0,16.86,16.841,10.0]
[1673595252560,52.06019593,16.861,16.841,10.0]
[1673595252769,27.06019593,16.861,16.841,10.0]
[1673595253099,104.936,16.865,16.841,10.0]
[1673595253417,154.82952927,16.865,16.841,10.0]
[1673595253828,17.0,16.864,16.841,10.0]
[1673595254249,66.89352927,16.864,16.841,10.0]
[1673595255102,49.89352927,16.864,16.842,20.0]
[1673595255299,60.12,16.87,16.842,20.0]
[1673595255300,11.9,16.87,16.85,60.2]
[1673595255727,11.9,16.87,16.851,10.0]
[1673595267092,11.9,16.87,16.85,60.2]
[1673595267728,46.09844293,16.869,16.85,60.2]
[1673595267926,17.0,16.865,16.85,60.2]
[1673595269386,17.0,16.865,16.85,12.08]
[1673595274642,12.01,16.86,16.842,396.6]
[1673595274867,17.0,16.859,16.842,396.6]
[1673595275177,133.93754892,16.859,16.842,396.6]
[1673595275399,116.93754892,16.858,16.842,396.6]
[1673595275602,17.0,16.857,16.842,396.6]
[1673595275791,133.93754892,16.857,16.842,396.6]
[1673595276012,60.26577266,16.856,16.842,396.6]
[1673595276222,17.0,16.855,16.841,112.4358]
[1673595276643,77.26577266,16.855,16.841,112.4358]
[1673595285173,17.0,16.855,16.841,112.4358]
[1673595285485,17.0,16.856,16.841,112.4358]
[1673595285886,56.67177626,16.857,16.842,10.0]
[1673595289802,45.26845938,16.86,16.842,10.0]
[1673595290006,73.67177626,16.859,16.842,10.0]
[1673595290219,125.90427501,16.859,16.842,10.0]
[1673595300426,125.90427501,16.859,16.841,122.4358]
[1673595300740,56.67177626,16.858,16.842,10.0]
[1673595300948,17.0,16.857,16.842,10.0]
[1673595301356,17.0,16.857,16.841,122.4358]
[1673595301567,17.0,16.857,16.841,112.4358]
[1673595304108,17.0,16.857,16.842,10.0]
[1673595305798,17.0,16.857,16.841,122.4358]
[1673595306104,17.0,16.857,16.842,10.0]
[1673595306635,73.67177626,16.857,16.841,122.4358]
[1673595306824,241.26228434,16.857,16.841,112.4358]
[1673595318186,116.0225,16.857,16.842,10.0]
[1673595323811,116.0225,16.857,16.841,112.4358]
[1673595324006,17.0,16.856,16.841,112.4358]
[1673595324520,17.0,16.856,16.842,10.0]
[1673595326861,17.0,16.856,16.841,112.4358]
[1673595329495,17.0,16.856,16.842,10.0]
[1673595343770,17.0,16.856,16.841,122.4358]
[1673595343977,17.0,16.856,16.842,10.0]
[1673595351461,11.93,16.86,16.842,10.0]
[1673595354068,84.76646746,16.861,16.842,10.0]
[1673595354284,17.0,16.86,16.842,10.0]
[1673595355009,51.56800808,16.861,16.844,10.0]
[1673595355227,51.56800808,16.861,16.845,1250.93620099]
[1673595355533,56.67177626,16.862,16.847,2.66872938]
[1673595355749,47.42828638,16.865,16.849,12.97856725]
[1673595355945,47.42828638,16.865,16.851,3.04634152]
[1673595356150,47.42828638,16.865,16.851,13.04634152]
[1673595356702,17.0,16.864,16.851,13.04634152]
[1673595358685,47.42828638,16.865,16.852,10.0]
[1673595358893,47.42828638,16.865,16.853,3.04634152]
[1673595374803,116.7472,16.866,16.853,3.04634152]
[1673595375236,20.0,16.865,16.853,3.04634152]
[1673595378612,20.0,16.865,16.851,3.04634152]
[1673595379551,20.0,16.865,16.851,13.04634152]
[1673595383757,20.0,16.865,16.852,10.0]
[1673595383958,20.0,16.865,16.853,3.04634152]
[1673595395744,20.0,16.865,16.851,3.04634152]
[1673595395745,17.0,16.864,16.851,3.04634152]
[1673595399103,17.0,16.864,16.85,121.9556]
[1673595400879,17.0,16.864,16.85,121.9456]
[1673595402351,17.0,16.864,16.851,0.76262271]
[1673595403931,11.92,16.86,16.842,396.6]
[1673595404150,37.0,16.859,16.842,396.6]
[1673595405194,37.0,16.859,16.843,10.0]
[1673595411812,37.0,16.859,16.841,110.0704]
[1673595414250,37.0,16.859,16.842,10.0]
[1673595415615,20.0,16.859,16.842,10.0]
[1673595415828,11.94,16.87,16.85,12.01]
[1673595416139,11.94,16.87,16.851,10.0]
[1673595416140,116.7472,16.866,16.851,10.0]
[1673595416665,116.7472,16.866,16.852,10.0]
[1673595417186,20.0,16.865,16.852,10.0]
[1673595423687,20.0,16.865,16.853,0.69411687]
[1673595427051,20.0,16.865,16.852,10.0]
[1673595428646,20.0,16.865,16.853,0.88447248]
[1673595428851,39.85361971,16.873,16.853,0.88447248]
[1673595429041,39.85361971,16.873,16.86,11.91]
[1673595429258,117.9893,16.875,16.86,11.91]
[1673595430935,117.9893,16.875,16.86,13.48274065]
[1673595431465,117.9893,16.875,16.861,10.0]
[1673595433910,117.9893,16.875,16.86,13.48274065]
[1673595434620,43.3985356,16.878,16.86,61.50274065]
[1673595434836,20.0,16.877,16.86,61.50274065]
[1673595435037,20.0,16.877,16.861,10.0]
[1673595442184,20.0,16.877,16.86,13.63274065]
[1673595442815,20.0,16.877,16.861,10.0]
[1673595443143,20.0,16.877,16.86,13.63274065]
[1673595444613,63.3985356,16.877,16.86,13.63274065]
[1673595444951,96.08237787,16.877,16.86,12.06]
[1673595445137,96.08237787,16.877,16.86,13.63274065]
[1673595445901,96.08237787,16.877,16.86,11.91]
[1673595446100,52.68384227,16.877,16.86,12.72845168]
[1673595446316,20.0,16.877,16.861,10.0]
[1673595446633,51.77361971,16.88,16.861,10.0]
[1673595446634,20.0,16.876,16.861,10.0]
[1673595446842,20.0,16.879,16.861,10.0]
[1673595447054,20.0,16.879,16.86,12.72845168]
[1673595447251,103.24522198,16.879,16.86,12.72845168]
[1673595449157,103.24522198,16.879,16.86,11.91]
[1673595449354,103.24522198,16.879,16.86,12.73884778]
[1673595449679,103.24522198,16.879,16.86,11.91]
[1673595450313,103.24522198,16.879,16.859,10.82884778]
[1673595450838,103.24522198,16.879,16.859,10.0]
[1673595451458,103.24522198,16.879,16.861,10.0]
[1673595452515,103.24522198,16.879,16.86,11.91]
[1673595452847,17.0,16.878,16.86,11.91]
[1673595453031,20.0,16.877,16.861,10.0]
[1673595453360,17.0,16.876,16.861,10.0]
[1673595453781,20.0,16.875,16.861,10.0]
[1673595455359,20.0,16.875,16.861,40.46683801]
[1673595455564,20.0,16.883,16.861,40.46683801]
[1673595455756,20.0,16.883,16.862,10.0]
[1673595457017,20.0,16.883,16.862,188.2]
[1673595457235,12.03,16.9,16.883,0.07726475]
[1673595457444,10.0,16.899,16.883,0.07726475]
[1673595458279,41.07601971,16.899,16.872,10.0]
[1673595458487,11.98,16.89,16.872,10.0]
[1673595458700,20.0,16.889,16.872,10.0]
[1673595460510,17.0,16.888,16.872,10.0]
[1673595460723,20.0,16.887,16.872,10.0]
[1673595463533,20.0,16.897,16.872,10.0]
[1673595464697,17.0,16.896,16.872,10.0]
[1673595465023,20.0,16.895,16.872,10.0]
[1673595465215,17.0,16.894,16.872,10.0]
[1673595465659,20.0,16.893,16.872,10.0]
[1673595465851,17.0,16.892,16.872,10.0]
[1673595466184,20.0,16.891,16.872,10.0]
[1673595470384,20.0,16.891,16.871,186.23863944]
[1673595470385,17.0,16.89,16.871,176.23863944]
[1673595470602,20.0,16.889,16.871,176.23863944]
[1673595470800,17.0,16.888,16.871,176.23863944]
[1673595471017,20.0,16.887,16.871,176.23863944]
[1673595472714,20.0,16.887,16.871,112.4288]
[1673595475648,117.9395,16.9,16.88,11.99]
[1673595475863,20.0,16.899,16.881,119.1511]
[1673595476898,17.0,16.898,16.881,119.1511]
[1673595477114,20.0,16.897,16.881,119.1511]
[1673595477324,17.0,16.896,16.881,119.1511]
[1673595477754,20.0,16.895,16.881,119.1511]
[1673595477961,17.0,16.894,16.881,119.1511]
[1673595481955,20.0,16.895,16.881,119.1511]
[1673595482165,20.0,16.899,16.881,119.1511]
[1673595482378,20.0,16.899,16.882,10.0]
[1673595485115,17.0,16.898,16.882,10.0]
[1673595485302,20.0,16.897,16.882,10.0]
[1673595487404,17.0,16.896,16.882,10.0]
[1673595487613,20.0,16.895,16.882,10.0]
[1673595489000,20.0,16.895,16.881,119.1511]
[1673595489310,17.0,16.894,16.881,119.1511]
[1673595490471,20.0,16.895,16.882,10.0]
[1673595490678,20.0,16.899,16.882,10.0]
[1673595490996,17.0,16.898,16.882,10.0]
[1673595491206,20.0,16.897,16.882,10.0]
[1673595491517,17.0,16.896,16.881,129.1511]
[1673595491707,20.0,16.895,16.881,119.1511]
[1673595491919,17.0,16.894,16.881,119.1511]
[1673595492992,17.0,16.894,16.882,10.0]
[1673595493179,20.0,16.895,16.882,10.0]
[1673595493398,20.0,16.899,16.882,10.0]
[1673595494876,17.0,16.898,16.882,10.0]
[1673595495083,20.0,16.897,16.882,10.0]
[1673595495285,17.0,16.896,16.882,10.0]
[1673595495497,20.0,16.895,16.882,10.0]
[1673595496752,20.0,16.895,16.881,129.1511]
[1673595497630,20.0,16.895,16.882,10.0]
[1673595498759,20.0,16.899,16.882,10.0]
[1673595498975,17.0,16.898,16.882,10.0]
[1673595499189,20.0,16.897,16.882,10.0]
[1673595500138,20.0,16.899,16.882,10.0]
[1673595500452,17.0,16.898,16.882,10.0]
[1673595500663,20.0,16.897,16.882,10.0]
[1673595503718,20.0,16.897,16.881,119.1511]
[1673595503928,17.0,16.896,16.881,119.1511]
[1673595504135,20.0,16.895,16.88,12.06]
[1673595504356,17.0,16.894,16.88,12.06]
[1673595504774,17.0,16.894,16.877,1228.6]
[1673595505016,20.0,16.893,16.877,1228.6]
[1673595505296,17.0,16.892,16.877,1228.6]
[1673595505705,20.0,16.891,16.877,1228.6]
[1673595505912,17.0,16.89,16.877,1228.6]
[1673595506140,20.0,16.889,16.877,1228.6]
[1673595509491,20.0,16.889,16.876,512.0839]
[1673595509492,20.0,16.889,16.876,115.4839]
[1673595510552,20.0,16.889,16.875,114.7111]
[1673595510766,10.0,16.887,16.87,600.06]
[1673595510968,20.0,16.889,16.869,118.1691]
[1673595510969,37.0,16.886,16.869,118.1691]
[1673595511186,20.0,16.885,16.869,118.1691]
[1673595511406,17.0,16.884,16.869,118.1691]
[1673595514461,11.94,16.88,16.868,396.6]
[1673595514780,37.0,16.879,16.862,396.6]
[1673595515091,37.0,16.879,16.863,10.0]
[1673595515706,37.0,16.879,16.862,396.6]
[1673595516132,37.0,16.879,16.863,10.0]
[1673595521720,37.0,16.879,16.861,116.1546]
[1673595524122,89.92428594,16.879,16.861,116.1546]
[1673595534323,72.92428594,16.879,16.861,116.1546]
[1673595534647,20.0,16.879,16.862,10.0]
[1673595535993,17.0,16.878,16.862,10.0]
[1673595536305,20.0,16.877,16.862,10.0]
[1673595538637,20.0,16.879,16.862,10.0]
[1673595544515,20.0,16.883,16.862,10.0]
[1673595544719,17.0,16.882,16.862,10.0]
[1673595544935,20.0,16.881,16.862,10.0]
[1673595548210,17.0,16.88,16.862,10.0]
[1673595548410,20.0,16.879,16.862,10.0]
[1673595556590,112.0178,16.884,16.862,61.99867964]
[1673595556804,112.0178,16.884,16.863,60.46683801]
[1673595557017,112.0178,16.884,16.864,10.0]
[1673595557226,112.0178,16.884,16.866,10.0]
[1673595557440,112.0178,16.884,16.867,112.1318]
[1673595558084,112.0178,16.884,16.868,10.0]
[1673595558296,17.0,16.883,16.868,10.0]
[1673595560717,112.0178,16.884,16.868,10.0]
[1673595564093,112.0178,16.884,16.87,11.92]
[1673595581527,112.0178,16.884,16.867,112.1318]
[1673595581740,11.99,16.88,16.866,113.5223]
[1673595581949,17.0,16.879,16.866,113.5223]
[1673595582164,20.0,16.878,16.866,113.5223]
[1673595582369,17.0,16.877,16.866,113.5223]
[1673595582565,20.0,16.876,16.866,113.5223]
[1673595592484,17.0,16.875,16.862,119.8845]
[1673595593958,17.0,16.875,16.86,11.96]
[1673595594160,20.0,16.874,16.857,115.2455]
[1673595594365,27.0,16.873,16.857,115.2455]
[1673595594567,20.0,16.872,16.857,115.2455]
[1673595594779,17.0,16.873,16.858,10.0]
[1673595595529,17.0,16.873,16.858,122.5773]
[1673595596359,17.0,16.873,16.858,112.5773]
[1673595597108,17.0,16.873,16.859,10.0]
[1673595597509,17.0,16.873,16.858,112.5773]
[1673595597730,106.6748,16.878,16.858,112.5773]
[1673595597941,37.0,16.877,16.858,112.5773]
[1673595603400,37.0,16.877,16.859,10.0]
[1673595604260,20.0,16.877,16.86,11.99]
[1673595604567,20.0,16.879,16.86,42.45683801]
[1673595604770,20.0,16.879,16.861,30.46683801]
[1673595604989,20.0,16.879,16.862,10.0]
[1673595605717,112.0178,16.884,16.862,10.0]
[1673595605933,112.0178,16.884,16.87,11.87]
[1673595607429,17.0,16.883,16.87,11.87]
[1673595610065,17.0,16.883,16.866,116.1205]
[1673595610268,20.0,16.882,16.866,116.1205]
[1673595610478,17.0,16.881,16.866,116.1205]
[1673595610679,20.0,16.88,16.866,116.1205]
[1673595610894,17.0,16.879,16.866,116.1205]
[1673595611217,20.0,16.878,16.866,116.1205]
[1673595612056,20.0,16.883,16.867,10.0]
[1673595612255,17.0,16.882,16.867,10.0]
[1673595612465,20.0,16.881,16.867,10.0]
[1673595613627,20.0,16.883,16.867,10.0]
[1673595614148,20.0,16.883,16.871,10.0]
[1673595618161,20.0,16.883,16.87,11.92]
[1673595618373,17.0,16.882,16.87,11.92]
[1673595618564,20.0,16.881,16.87,11.92]
[1673595622259,20.0,16.881,16.867,10.0]
[1673595622447,17.0,16.88,16.867,10.0]
[1673595622783,17.0,16.88,16.866,126.1205]
[1673595622784,20.0,16.879,16.866,116.1205]
[1673595622971,17.0,16.878,16.866,116.1205]
[1673595623183,20.0,16.877,16.866,116.1205]
[1673595624253,20.0,16.877,16.867,10.0]
[1673595625079,20.0,16.883,16.867,10.0]
[1673595626458,17.0,16.882,16.867,10.0]
[1673595626650,20.0,16.881,16.867,10.0]
[1673595627719,20.0,16.883,16.867,10.0]
[1673595628034,112.0178,16.884,16.867,10.0]
[1673595628448,112.0178,16.884,16.87,11.87]
[1673595628772,112.0178,16.884,16.871,10.0]
[1673595629932,11.92,16.89,16.871,10.0]
[1673595630145,20.0,16.889,16.873,10.0]
[1673595630674,20.0,16.889,16.872,113.4922]
[1673595632453,20.0,16.889,16.87,11.87]
[1673595632647,62.44699256,16.889,16.867,112.1599]
[1673595632858,62.65981394,16.888,16.867,112.1599]
[1673595633079,11.98,16.88,16.867,112.1599]
[1673595633291,20.0,16.879,16.867,112.1599]
[1673595634443,20.0,16.879,16.868,10.0]
[1673595635082,20.0,16.885,16.868,10.0]
[1673595639705,20.0,16.886,16.868,10.0]